fUSD/lending_fUSD_20260503
["ID","MTS","AMOUNT","RATE_DAILY","PERIOD"]
[421524714,1777820306000,-15.0,0.00014139,2]
[421524713,1777820306000,-136.0,0.00014139,2]
[421524715,1777820306000,-151.0,0.00014139,2]
[421524719,1777820307000,-151.0,0.00014139,2]
[421524729,1777820307000,-140.0,0.00014138,2]
[421524728,1777820307000,-160.0,0.00014138,2]
[421524725,1777820307000,-151.0,0.00014139,2]
[421524726,1777820307000,-17.0,0.00014139,2]
[421524724,1777820307000,-142.0,0.00014139,2]
[421524722,1777820307000,-151.0,0.00014139,2]
[421524721,1777820307000,-150.0,0.00014139,2]
[421524723,1777820307000,-9.0,0.00014139,2]
[421524720,1777820307000,-1.0,0.00014139,2]
[421524727,1777820307000,-150.0,0.00014138,2]
[421524730,1777820308000,-237.72888282,0.00014039,2]
[421524731,1777820362000,10000.01,0.00013833,2]
[421524732,1777820362000,4011.2607551,0.00013833,2]
[421524735,1777820469000,171.98237039,0.00014139,2]
[421524734,1777820469000,171.98237039,0.00014139,2]
[421524744,1777820831000,-151.0,0.00014139,2]
[421524745,1777820831000,-692.61543524,0.00014998,2]
[421524751,1777820831000,-184.278472,0.00015098,2]
[421524746,1777820831000,-300.0,0.00015,2]
[421524747,1777820831000,-250.0,0.00015048,2]
[421524748,1777820831000,-500.0,0.00015098,2]
[421524750,1777820831000,-478.68822324,0.00015098,2]
[421524749,1777820831000,-500.0,0.00015098,2]
[421524753,1777820831000,-162.23,0.00018943,2]
[421524743,1777820831000,-250.0,0.00013,2]
[421524752,1777820831000,-250.0,0.00016498,2]
[421524755,1777820831000,-300.0,0.00019199,2]
[421524757,1777820831000,-151.0,0.00019815,2]
[421524760,1777820831000,-151.0,0.00019815,2]
[421524758,1777820831000,-151.0,0.00019815,2]
[421524756,1777820831000,-1618.91815432,0.000192,7]
[421524759,1777820831000,-151.0,0.00019815,2]
[421524761,1777820831000,-151.0,0.00019815,2]
[421524762,1777820831000,-285.0,0.00019815,2]
[421524763,1777820831000,-11692.36215817,0.00019827,2]
[421524754,1777820831000,-175.0,0.00019199,2]
[421524764,1777820840000,270.12,0.00025248,120]
[421524765,1777820841000,270.12,0.00028053,120]
[421524768,1777821015000,-152.0,0.00018468,7]
[421524767,1777821015000,-152.0,0.00018462,7]
[421524770,1777821016000,-174.78731624,0.00019827,2]
[421524772,1777821016000,-1169.80911374,0.00019827,2]
[421524771,1777821016000,-151.0,0.00019827,2]
[421524769,1777821016000,-152.0,0.00018468,7]
[421524777,1777821031000,-285.3993793,0.00019827,2]
[421524776,1777821031000,-188.8035557,0.00017925,2]
[421524784,1777821037000,-502.32992153,0.00020308,2]
[421524794,1777821037000,-156.0,0.00021594,2]
[421524783,1777821037000,-863.70010389,0.00019827,2]
[421524786,1777821037000,-519.50562949,0.00020951,2]
[421524785,1777821037000,-130.96004864,0.00020308,2]
[421524788,1777821037000,-353.9,0.00021084,2]
[421524787,1777821037000,-1499.52437051,0.00020951,2]
[421524789,1777821037000,-1200.0,0.00021094,2]
[421524790,1777821037000,-1852.42,0.00021095,2]
[421524821,1777821037000,-3305.71380669,0.00021596,2]
[421524791,1777821037000,-152.0,0.00021309,7]
[421524792,1777821037000,-725.6769988,0.00021586,2]
[421524795,1777821037000,-1100.0,0.00021594,2]
[421524797,1777821037000,-500.70624799,0.00021595,2]
[421524796,1777821037000,-500.0,0.00021595,2]
[421524798,1777821037000,-300.0,0.00021595,2]
[421524799,1777821037000,-62625.22793502,0.00021596,2]
[421524823,1777821037000,-766.39805676,0.00021596,2]
[421524793,1777821037000,-1000.0,0.00021594,2]
[421524827,1777821038000,-254.79650121,0.00021596,2]
[421524839,1777821039000,-6691.40507811,0.00021596,2]
[421524844,1777821039000,-500.0,0.00022143,2]
[421524845,1777821039000,-500.0,0.00022417,2]
[421524840,1777821039000,-2077920.81342221,0.00021596,2]
[421524841,1777821039000,-150.0,0.00021606,2]
[421524847,1777821039000,-426.0,0.00022501,2]
[421524843,1777821039000,-500.0,0.00021869,2]
[421524842,1777821039000,-20636.09306615,0.00021848,2]
[421524846,1777821039000,-270.12,0.00022442,2]
[421524876,1777821040000,-166.32,0.00025596,2]
[421524882,1777821040000,-166.66,0.00026366,30]
[421524883,1777821040000,-20636.09306606,0.00026388,2]
[421524878,1777821040000,-14011.2707551,0.00025822,2]
[421524895,1777821040000,-1909.36,0.00026591,5]
[421524877,1777821040000,-1511.87,0.00025675,2]
[421524881,1777821040000,-166.32,0.00026342,2]
[421524880,1777821040000,-1511.87,0.00026286,2]
[421524879,1777821040000,-166.66,0.00025864,30]
[421524884,1777821040000,-500.0,0.00026573,2]
[421524885,1777821040000,-300.0,0.0002659,10]
[421524886,1777821040000,-4563.15,0.00026591,2]
[421524894,1777821040000,-150.99,0.00026591,2]
[421524873,1777821040000,-1259.0,0.00025192,2]
[421524888,1777821040000,-650.71,0.00026591,2]
[421524892,1777821040000,-1820.43,0.00026591,2]
[421524890,1777821040000,-499.99,0.00026591,2]
[421524891,1777821040000,-68386.51,0.00026591,2]
[421524887,1777821040000,-299.99,0.00026591,12]
[421524893,1777821040000,-9999.99,0.00026591,2]
[421524897,1777821040000,-1511.87,0.00026897,2]
[421524898,1777821040000,-541.0,0.00027137,2]
[421524896,1777821040000,-715.48,0.000266,7]
[421524899,1777821040000,-2000.0,0.00027369,2]
[421524889,1777821040000,-999.99,0.00026591,2]
[421524875,1777821040000,-166.8,0.00025363,2]
[421524902,1777821040000,-19772.6,0.000274,7]
[421524874,1777821040000,-166.66,0.00025362,30]
[421524849,1777821040000,-166.32,0.0002261,2]
[421524848,1777821040000,-1740.54,0.00022562,2]
[421524851,1777821040000,-200.0,0.00022853,2]
[421524853,1777821040000,-500.0,0.00023059,2]
[421524854,1777821040000,-166.32,0.00023357,2]
[421524855,1777821040000,-300.0,0.00023562,2]
[421524860,1777821040000,-166.66,0.00023855,30]
[421524859,1777821040000,-353.9,0.0002372,2]
[421524852,1777821040000,-1680.0,0.00023052,2]
[421524856,1777821040000,-16853.83027484,0.00023562,2]
[421524857,1777821040000,-90000.09,0.00023563,2]
[421524850,1777821040000,-393.88883411,0.00022691,2]
[421524861,1777821040000,-166.32,0.00024103,2]
[421524863,1777821040000,-2000.0,0.00024328,2]
[421524871,1777821040000,-1511.87,0.00025063,2]
[421524862,1777821040000,-20636.09306606,0.00024118,2]
[421524865,1777821040000,-1511.87,0.00024452,2]
[421524864,1777821040000,-166.66,0.00024358,30]
[421524870,1777821040000,-150.0,0.00025015,2]
[421524868,1777821040000,-3475.5635077,0.00024898,2]
[421524869,1777821040000,-45097.9192059,0.00024898,2]
[421524866,1777821040000,-166.32,0.00024849,2]
[421524867,1777821040000,-166.66,0.0002486,30]
[421524872,1777821040000,-216.64,0.00025138,2]
[421524858,1777821040000,-162.23,0.00023678,2]
[421524900,1777821040000,-396.3,0.000274,7]
[421524935,1777821040000,-210.774067,0.0003577,21]
[421524904,1777821040000,-162.23,0.00028414,2]
[421524933,1777821040000,-661.55,0.000355,30]
[421524926,1777821040000,-153.58,0.0003355,2]
[421524931,1777821040000,-3357.177,0.00034712,39]
[421524932,1777821040000,-20636.09306606,0.00035469,2]
[421524947,1777821040000,-928.0,0.00036992,2]
[421524939,1777821040000,-288.310243,0.0003577,120]
[421524949,1777821040000,-3926.77,0.00037,14]
[421524938,1777821040000,-220.822899,0.0003577,21]
[421524948,1777821040000,-6039.0,0.00036992,2]
[421524941,1777821040000,-541.0,0.00035947,11]
[421524946,1777821040000,-948.483294,0.00036966,120]
[421524937,1777821040000,-926.81568,0.0003577,120]
[421524943,1777821040000,-19772.6,0.000365,7]
[421524942,1777821040000,-2000.0,0.00036492,2]
[421524940,1777821040000,-153.58,0.00035946,2]
[421524952,1777821040000,-2112.42,0.000377,2]
[421524951,1777821040000,-2112.42,0.000377,2]
[421524954,1777821040000,-556.473701,0.0003773,120]
[421524957,1777821040000,-150.0,0.000378,7]
[421524950,1777821040000,-396.3,0.000374,30]
[421524956,1777821040000,-150.0,0.000378,7]
[421524955,1777821040000,-20636.09306606,0.0003774,2]
[421524953,1777821040000,-2112.42,0.000377,2]
[421524901,1777821040000,-3926.77,0.000274,14]
[421524945,1777821040000,-169.972951,0.00036966,21]
[421524930,1777821040000,-715.48,0.000337,7]
[421524944,1777821040000,-4286.130992,0.00036946,120]
[421524928,1777821040000,-482.0,0.00033656,5]
[421524934,1777821040000,-270.6807305,0.00035535,2]
[421524908,1777821040000,-1000.0,0.00029981,7]
[421524907,1777821040000,-188.8035557,0.00029576,2]
[421524909,1777821040000,-200.0,0.0003,2]
[421524903,1777821040000,-661.55,0.000274,7]
[421524906,1777821040000,-153.58,0.00028757,2]
[421524912,1777821040000,-715.48,0.000306,7]
[421524905,1777821040000,-20636.09306606,0.00028659,2]
[421524911,1777821040000,-2000.0,0.0003041,2]
[421524913,1777821040000,-270.12,0.00030858,120]
[421524915,1777821040000,-661.55,0.00031,7]
[421524914,1777821040000,-20636.09306606,0.00030929,2]
[421524910,1777821040000,-771.33,0.00030384,2]
[421524916,1777821040000,-153.58,0.00031153,2]
[421524917,1777821040000,-19772.6,0.000314,7]
[421524927,1777821040000,-415.0,0.00033573,30]
[421524925,1777821040000,-2000.0,0.00033451,2]
[421524936,1777821040000,-220.822898,0.0003577,120]
[421524923,1777821040000,-20636.09306606,0.00033199,2]
[421524924,1777821040000,-501.07586597,0.00033228,7]
[421524921,1777821040000,-396.3,0.000319,7]
[421524919,1777821040000,-3926.77,0.000317,14]
[421524920,1777821040000,-14011.2707551,0.00031816,2]
[421524918,1777821040000,-353.9,0.00031627,120]
[421524922,1777821040000,-288.310244,0.00032535,14]
[421524929,1777821040000,-270.12,0.00033664,120]
[421525004,1777821041000,-1000.0,0.0003867,2]
[421525003,1777821041000,-1000.0,0.0003867,2]
[421524997,1777821041000,-3926.77,0.000386,14]
[421524995,1777821041000,-150.0,0.00038554,7]
[421524988,1777821041000,-166.155078,0.000385,30]
[421524994,1777821041000,-303.568148,0.000385,30]
[421524989,1777821041000,-166.155078,0.000385,30]
[421524987,1777821041000,-166.155078,0.000385,30]
[421525001,1777821041000,-150.0,0.00038662,7]
[421524996,1777821041000,-396.3,0.000386,30]
[421524993,1777821041000,-303.568148,0.000385,30]
[421525009,1777821041000,-623.0,0.00038686,2]
[421525002,1777821041000,-1000.0,0.0003867,2]
[421524998,1777821041000,-1559.0,0.0003863,30]
[421525000,1777821041000,-150.0,0.0003864,7]
[421525006,1777821041000,-155.669,0.00038685,2]
[421525014,1777821041000,-150.0,0.0003885,7]
[421525013,1777821041000,-150.0,0.00038769,7]
[421525012,1777821041000,-290.62434258,0.00038711,2]
[421525015,1777821041000,-700.0,0.0003887,2]
[421525016,1777821041000,-1000.0,0.0003887,2]
[421525005,1777821041000,-1000.0,0.0003867,2]
[421525007,1777821041000,-1049.0,0.00038686,2]
[421524990,1777821041000,-303.568148,0.000385,30]
[421525008,1777821041000,-3533.0,0.00038686,2]
[421524999,1777821041000,-150.0,0.0003864,7]
[421524991,1777821041000,-166.155078,0.000385,30]
[421524971,1777821041000,-150.0,0.00038123,7]
[421524978,1777821041000,-1559.0,0.00038356,30]
[421524959,1777821041000,-150.0,0.000378,7]
[421524962,1777821041000,-150.0,0.000378,7]
[421524958,1777821041000,-150.0,0.000378,7]
[421524960,1777821041000,-259.99293565,0.000378,7]
[421524961,1777821041000,-150.0,0.000378,7]
[421524965,1777821041000,-150.0,0.00037908,7]
[421524964,1777821041000,-150.0,0.000378,7]
[421524975,1777821041000,-150.0,0.00038231,7]
[421524968,1777821041000,-150.0,0.00038015,7]
[421524969,1777821041000,-1044.32,0.00038034,30]
[421524970,1777821041000,-705.16258602,0.00038099,14]
[421524966,1777821041000,-150.0,0.00037948,120]
[421524983,1777821041000,-300.0,0.00038499,10]
[421524973,1777821041000,-661.55,0.000382,30]
[421524972,1777821041000,-2112.42,0.000382,2]
[421524967,1777821041000,-715.48,0.00038,7]
[421525011,1777821041000,-1267.0,0.00038686,2]
[421524974,1777821041000,-353.0,0.00038207,14]
[421524985,1777821041000,-19772.6,0.000385,7]
[421524976,1777821041000,-150.0,0.00038338,7]
[421524986,1777821041000,-151.633335,0.000385,30]
[421524980,1777821041000,-150.0,0.00038446,7]
[421524981,1777821041000,-26016.79586533,0.0003846,5]
[421524982,1777821041000,-10062.7059347,0.0003849,2]
[421524984,1777821041000,-50000.0,0.000385,5]
[421524979,1777821041000,-150.0,0.000384,7]
[421524963,1777821041000,-150.0,0.000378,7]
[421525010,1777821041000,-1350.0,0.00038686,2]
[421524977,1777821041000,-153.58,0.00038343,2]
[421525019,1777821041000,-150.0,0.00038877,7]
[421525050,1777821041000,-1154.351,0.00039992,2]
[421525051,1777821041000,-1238.36,0.0004,30]
[421525052,1777821041000,-20636.09306606,0.0004001,15]
[421525048,1777821041000,-150.0,0.00039954,7]
[421525054,1777821041000,-150.0,0.00040062,7]
[421525055,1777821041000,-150.0,0.00040169,7]
[421525057,1777821041000,-715.48,0.000402,30]
[421525058,1777821041000,-1886.35811825,0.00040267,2]
[421525059,1777821041000,-150.0,0.00040277,7]
[421525056,1777821041000,-150.0,0.000402,7]
[421525064,1777821041000,-150.0,0.0004032,7]
[421525066,1777821041000,-150.0,0.00040385,7]
[421525065,1777821041000,-600.0,0.00040356,21]
[421525067,1777821041000,-661.55,0.000404,30]
[421525063,1777821041000,-150.0,0.0004032,7]
[421525060,1777821041000,-469.97,0.00040287,2]
[421525062,1777821041000,-307.0,0.000403,30]
[421525061,1777821041000,-314.0,0.000403,30]
[421525071,1777821041000,-459.22832,0.00040641,21]
[421525069,1777821041000,-150.0,0.000406,7]
[421525075,1777821041000,-153.58,0.00040739,2]
[421525072,1777821041000,-758.456641,0.00040641,21]
[421525070,1777821041000,-160.0,0.00040641,21]
[421525074,1777821041000,-75092.5989962,0.00040728,2]
[421525068,1777821041000,-150.0,0.00040492,7]
[421525073,1777821041000,-150.0,0.00040708,7]
[421525017,1777821041000,-1000.0,0.0003887,2]
[421525049,1777821041000,-1000.0,0.0003999,21]
[421525043,1777821041000,-150.0,0.00039738,7]
[421524992,1777821041000,-303.568148,0.000385,30]
[421525053,1777821041000,-150.0,0.00040056,120]
[421525018,1777821041000,-1000.0,0.0003887,2]
[421525045,1777821041000,-1000.0,0.0003987,2]
[421525021,1777821041000,-150.0,0.00038985,7]
[421525022,1777821041000,-469.97,0.00038988,2]
[421525020,1777821041000,-1559.0,0.00038904,30]
[421525023,1777821041000,-150.0,0.00039,7]
[421525029,1777821041000,-150.0,0.000392,7]
[421525026,1777821041000,-715.48,0.000391,30]
[421525027,1777821041000,-1559.0,0.00039178,30]
[421525024,1777821041000,-500.0,0.00039068,2]
[421525028,1777821041000,-2112.42,0.000392,2]
[421525030,1777821041000,-661.55,0.000393,30]
[421525039,1777821041000,-150.0,0.000396,7]
[421525025,1777821041000,-150.0,0.00039092,7]
[421525038,1777821041000,-150.0,0.00039523,7]
[421525044,1777821041000,-150.0,0.00039846,7]
[421525040,1777821041000,-150.0,0.00039631,7]
[421525046,1777821041000,-400.0,0.0003987,2]
[421525042,1777821041000,-1559.0,0.00039726,30]
[421525036,1777821041000,-150.0,0.0003948,7]
[421525037,1777821041000,-150.0,0.0003948,7]
[421525047,1777821041000,-150.0,0.000399,7]
[421525033,1777821041000,-534.66418021,0.00039395,2]
[421525032,1777821041000,-297.90504,0.00039347,21]
[421525034,1777821041000,-150.0,0.00039415,7]
[421525031,1777821041000,-150.0,0.00039308,7]
[421525041,1777821041000,-469.97,0.00039637,2]
[421525035,1777821041000,-1559.0,0.00039452,30]
[421525103,1777821042000,-303.568148,0.0004095,30]
[421525095,1777821042000,-178.253849,0.0004095,30]
[421525104,1777821042000,-303.568148,0.0004095,30]
[421525099,1777821042000,-166.155078,0.0004095,30]
[421525100,1777821042000,-166.155078,0.0004095,30]
[421525097,1777821042000,-166.155078,0.0004095,30]
[421525106,1777821042000,-150.0,0.0004095,7]
[421525093,1777821042000,-178.253849,0.0004095,30]
[421525105,1777821042000,-303.568148,0.0004095,30]
[421525109,1777821042000,-151.0,0.00041096,120]
[421525102,1777821042000,-166.155078,0.0004095,30]
[421525101,1777821042000,-303.568148,0.0004095,30]
[421525088,1777821042000,-1707.966409,0.0004095,7]
[421525079,1777821042000,-150.0,0.00040923,7]
[421525085,1777821042000,-151.0,0.0004095,30]
[421525078,1777821042000,-11142.1106562,0.0004085,2]
[421525076,1777821042000,-150.0,0.000408,7]
[421525118,1777821042000,-1747.5382,0.000411,120]
[421525080,1777821042000,-469.97559957,0.00040937,2]
[421525077,1777821042000,-150.0,0.00040815,7]
[421525083,1777821042000,-151.0,0.0004095,30]
[421525092,1777821042000,-178.253849,0.0004095,30]
[421525081,1777821042000,-186838.0,0.0004095,60]
[421525090,1777821042000,-1707.966409,0.0004095,7]
[421525089,1777821042000,-267.232948,0.0004095,30]
[421525082,1777821042000,-151.0,0.0004095,30]
[421525086,1777821042000,-1707.966409,0.0004095,7]
[421525084,1777821042000,-1707.966409,0.0004095,7]
[421525087,1777821042000,-151.0,0.0004095,30]
[421525091,1777821042000,-178.253849,0.0004095,30]
[421525111,1777821042000,-1747.53819,0.000411,120]
[421525107,1777821042000,-150.0,0.00041031,7]
[421525110,1777821042000,-181.733885,0.00041096,120]
[421525120,1777821042000,-1747.53819,0.000411,120]
[421525147,1777821042000,-1747.53819,0.00041512,120]
[421525145,1777821042000,-661.55,0.000415,30]
[421525148,1777821042000,-172.4978127,0.00041523,2]
[421525144,1777821042000,-2762.08209816,0.000415,30]
[421525146,1777821042000,-1000.0,0.00041511,2]
[421525143,1777821042000,-1664.0,0.00040169,2]
[421525142,1777821042000,-829.60275076,0.00037169,2]
[421525139,1777821042000,-262.05810027,0.000415,30]
[421525141,1777821042000,-834.39724924,0.00037169,2]
[421525140,1777821042000,-499.289749,0.0003118,120]
[421525138,1777821042000,-415.0,0.000415,30]
[421525132,1777821042000,-809.0,0.000414,7]
[421525134,1777821042000,-300.0,0.00041425,120]
[421525135,1777821042000,-267.13,0.00041453,120]
[421525136,1777821042000,-150.0,0.00041462,30]
[421525128,1777821042000,-715.48,0.000413,30]
[421525131,1777821042000,-1000.0,0.00041395,6]
[421525108,1777821042000,-151.0,0.00041096,120]
[421525123,1777821042000,-150.0,0.0004116,30]
[421525121,1777821042000,-150.0,0.00041138,30]
[421525114,1777821042000,-1747.53819,0.000411,120]
[421525124,1777821042000,-150.0,0.0004116,30]
[421525125,1777821042000,-600.0,0.00041178,120]
[421525127,1777821042000,-150.0,0.00041246,30]
[421525130,1777821042000,-300.0,0.0004137,110]
[421525129,1777821042000,-150.0,0.00041354,30]
[421525126,1777821042000,-188.8035557,0.00041228,2]
[421525133,1777821042000,-150.0,0.000414,30]
[421525137,1777821042000,-71055.85980157,0.000415,30]
[421525112,1777821042000,-1747.53819,0.000411,120]
[421525122,1777821042000,-350.0,0.00041139,6]
[421525150,1777821046000,-310.546,0.00040267,2]
[421525151,1777821046000,-947.02607884,0.00040267,2]
[421525153,1777821046000,-452.49897273,0.00041523,2]
[421525152,1777821046000,-0.5403052,0.00041523,2]
[421525161,1777821377000,-534.9015735,0.00021491,2]
[421525159,1777821377000,-534.9015735,0.00020417,2]
[421525160,1777821377000,-88.1284265,0.00020417,2]
[421525163,1777821398000,-162.45035992,0.00022201,2]
[421525165,1777821398000,-132.02693416,0.00022466,2]
[421525164,1777821398000,-240.42427942,0.00022459,2]
[421525162,1777821398000,-88.1284265,0.00021491,2]
[421525167,1777821506000,250.2646,0.000215,2]
[421525169,1777821606000,10000.0,0.00030137,120]
[421525171,1777821622000,5100.0,0.00030137,120]
[421525180,1777821834000,178.83,0.00018126,2]
[421525183,1777822026000,10000.01,0.00015,2]
[421525186,1777822026000,10000.01,0.00015,2]
[421525187,1777822026000,10000.01,0.00015,2]
[421525185,1777822026000,10000.01,0.00015,2]
[421525184,1777822026000,10000.01,0.00015,2]
[421525182,1777822026000,10000.01,0.00015,2]
[421525188,1777822040000,300.0,0.00022466,120]
[421525190,1777822117000,-18989.63946947,0.00015,2]
[421525191,1777822153000,-244.9118,0.00015,2]
[421525192,1777822172000,-9570.9154,0.00015,2]
[421525292,1777822376000,-10000.01,0.00015,2]
[421525300,1777822377000,-8050.01,0.00015,2]
[421525299,1777822377000,-150.0,0.00014999,2]
[421525297,1777822377000,-1200.0,0.00014999,2]
[421525296,1777822377000,-300.0,0.00014999,2]
[421525298,1777822377000,-300.0,0.00014999,2]
[421525295,1777822377000,-10000.01,0.00015,2]
[421525294,1777822377000,-10000.01,0.00015,2]
[421525293,1777822377000,21868.0,0.00030137,120]
[421525301,1777822378000,470110.42722344,0.00012,2]
[421525304,1777822378000,-533.69004943,0.00014999,2]
[421525305,1777822378000,-8466.31995057,0.00015,2]
[421525302,1777822378000,-500.0,0.00014999,2]
[421525303,1777822378000,-500.0,0.00014999,2]
[421525320,1777822379000,-500.0,0.00014999,2]
[421525319,1777822379000,-500.0,0.00014999,2]
[421525322,1777822379000,-542.07132849,0.00014999,2]
[421525321,1777822379000,-500.0,0.00014999,2]
[421525318,1777822379000,-500.0,0.00014999,2]
[421525317,1777822379000,-500.0,0.00014999,2]
[421525316,1777822379000,-500.0,0.00014999,2]
[421525314,1777822379000,-500.0,0.00014999,2]
[421525313,1777822379000,-500.0,0.00014999,2]
[421525315,1777822379000,-500.0,0.00014999,2]
[421525312,1777822379000,-500.0,0.00014999,2]
[421525310,1777822379000,-500.0,0.00014999,2]
[421525308,1777822379000,-500.0,0.00014999,2]
[421525309,1777822379000,-500.0,0.00014999,2]
[421525306,1777822379000,-500.0,0.00014999,2]
[421525307,1777822379000,-500.0,0.00014999,2]
[421525323,1777822379000,-500.0,0.00014999,2]
[421525325,1777822379000,-457.93867151,0.00014999,2]
[421525311,1777822379000,-500.0,0.00014999,2]
[421525326,1777822379000,-42.06132849,0.00014999,2]
[421525340,1777822379000,-500.0,0.00014999,2]
[421525324,1777822379000,-500.0,0.00014999,2]
[421525342,1777822379000,-443.97833508,0.00014999,2]
[421525339,1777822379000,-500.0,0.00014999,2]
[421525341,1777822379000,-56.02166492,0.00014999,2]
[421525338,1777822379000,-500.0,0.00014999,2]
[421525336,1777822379000,-500.0,0.00014999,2]
[421525337,1777822379000,-500.0,0.00014999,2]
[421525343,1777822379000,-500.0,0.00014999,2]
[421525334,1777822379000,-500.0,0.00014999,2]
[421525333,1777822379000,-500.0,0.00014999,2]
[421525332,1777822379000,-344.65714535,0.00014999,2]
[421525329,1777822379000,-500.0,0.00014999,2]
[421525327,1777822379000,-466.54867151,0.00014999,2]
[421525330,1777822379000,-500.0,0.00014999,2]
[421525331,1777822379000,-155.34285465,0.00014999,2]
[421525335,1777822379000,-500.0,0.00014999,2]
[421525328,1777822379000,-33.45132849,0.00014999,2]
[421525359,1777822380000,-500.0,0.00014999,2]
[421525361,1777822380000,-200.0,0.00014999,2]
[421525363,1777822380000,-500.0,0.00014999,2]
[421525365,1777822380000,-500.0,0.00014999,2]
[421525364,1777822380000,-500.0,0.00014999,2]
[421525367,1777822380000,-500.0,0.00014999,2]
[421525369,1777822380000,-500.0,0.00014999,2]
[421525370,1777822380000,-500.0,0.00014999,2]
[421525371,1777822380000,-323.13744699,0.00014999,2]
[421525360,1777822380000,-500.0,0.00014999,2]
[421525368,1777822380000,-500.0,0.00014999,2]
[421525366,1777822380000,-500.0,0.00014999,2]
[421525358,1777822380000,-500.0,0.00014999,2]
[421525349,1777822380000,-348.37916492,0.00014999,2]
[421525355,1777822380000,-500.0,0.00014999,2]
[421525356,1777822380000,-500.0,0.00014999,2]
[421525352,1777822380000,-500.0,0.00014999,2]
[421525354,1777822380000,-325.25171793,0.00014999,2]
[421525353,1777822380000,-500.0,0.00014999,2]
[421525350,1777822380000,-151.62083508,0.00014999,2]
[421525351,1777822380000,-500.0,0.00014999,2]
[421525348,1777822380000,-500.0,0.00014999,2]
[421525347,1777822380000,-500.0,0.00014999,2]
[421525346,1777822380000,-500.0,0.00014999,2]
[421525345,1777822380000,-500.0,0.00014999,2]
[421525344,1777822380000,-500.0,0.00014999,2]
[421525372,1777822380000,-176.86255301,0.00014999,2]
[421525357,1777822380000,-500.0,0.00014999,2]
[421525373,1777822380000,-86.50375087,0.00014999,2]
[421525362,1777822380000,-500.0,0.00014999,2]
[421525375,1777822380000,-500.0,0.00014999,2]
[421525374,1777822380000,-413.49624913,0.00014999,2]
[421525403,1777822380000,-10000.01,0.00015,2]
[421525401,1777822380000,-5408.18989725,0.00015,2]
[421525399,1777822380000,-5989.6634051,0.00015,2]
[421525397,1777822380000,-147798.9701588,0.00015,2]
[421525402,1777822380000,-787.37674088,0.00015,2]
[421525400,1777822380000,-8600.16096363,0.00015,2]
[421525398,1777822380000,-621.0,0.00015,2]
[421525396,1777822380000,-344.66,0.00015,2]
[421525395,1777822380000,-332.74883103,0.00015,2]
[421525394,1777822380000,-66499.02653974,0.00015,2]
[421525392,1777822380000,-491.42396994,0.00015,2]
[421525389,1777822380000,-3268.26365647,0.00015,2]
[421525391,1777822380000,-315.59876292,0.00015,2]
[421525393,1777822380000,-1557.38467929,0.00015,2]
[421525390,1777822380000,-254.35997673,0.00015,2]
[421525376,1777822380000,-500.0,0.00014999,2]
[421525378,1777822380000,-500.0,0.00014999,2]
[421525388,1777822380000,-4255.19175209,0.00015,2]
[421525380,1777822380000,-500.0,0.00014999,2]